fUST/lending_fUST_20250606
["ID","MTS","AMOUNT","RATE_DAILY","PERIOD"]
[364741511,1749223927570,-1347.22129813,0.00019167,2]
[364741512,1749223927596,-1347.22129813,0.00019167,2]
[364741513,1749223927628,-1347.22129813,0.00019167,2]
[364741514,1749223927652,-1347.22129813,0.00019167,2]
[364741515,1749223927859,-1347.22129813,0.00019167,2]
[364741516,1749223927891,-1347.22129813,0.00019167,2]
[364741517,1749223927918,-1347.22129813,0.00019167,2]
[364741518,1749223927943,-1347.22129813,0.00019167,2]
[364741519,1749223927969,-1347.22129813,0.00019167,2]
[364741520,1749223927995,-1347.22129813,0.00019167,2]
[364741521,1749223928020,-1347.22129813,0.00019167,2]
[364741522,1749223928047,-1347.22129813,0.00019167,2]
[364741523,1749223928072,-1347.22129813,0.00019167,2]
[364741524,1749223928098,-1347.22129813,0.00019167,2]
[364741525,1749223928123,-1347.22129813,0.00019167,2]
[364741526,1749223928149,-1347.22129813,0.00019167,2]
[364741527,1749223928172,-1347.22129813,0.00019167,2]
[364741528,1749223928197,-1347.22129813,0.00019167,2]
[364741529,1749223928221,-1347.22129813,0.00019167,2]
[364741530,1749223928245,-1347.22129813,0.00019167,2]
[364741531,1749223928269,-1347.22129813,0.00019167,2]
[364741532,1749223928297,-1347.22129813,0.00019167,2]
[364741533,1749223928323,-1347.22129813,0.00019167,2]
[364741534,1749223928348,-1347.22129813,0.00019167,2]
[364741535,1749223928374,-1347.22129813,0.00019167,2]
[364741536,1749223928399,-1347.22129813,0.00019167,2]
[364741537,1749223928425,-1347.22129813,0.00019167,2]
[364741538,1749223928456,-1347.22129813,0.00019167,2]
[364741539,1749223928481,-1347.22129813,0.00019167,2]
[364741540,1749223928506,-1347.22129813,0.00019167,2]
[364741541,1749223928530,-854.05684318,0.00019167,2]
[364741542,1749223943355,150.0,0.00015833,2]
[364741543,1749223943764,150.0,0.00016587,2]
[364741544,1749223944202,150.0,0.00017341,2]
[364741545,1749223944336,179.89263819,0.00016438,3]
[364741546,1749223944674,150.0,0.00018095,2]
[364741547,1749223945089,150.0,0.00018849,2]
[364741548,1749223959440,8209.57621674,0.00018196,2]
[364741549,1749223959463,16690.42378326,0.00018196,2]
[364741550,1749224013966,150.0,0.00018268,2]
[364741551,1749224014589,-150.0,0.00019138,2]
[364741552,1749224014616,-500.0,0.00019173,2]
[364741553,1749224014813,-300.0,0.00019176,2]
[364741554,1749224014841,-300.0,0.00019176,2]
[364741555,1749224014869,-500.0,0.00019177,2]
[364741556,1749224014894,-627.62605343,0.00019177,2]
[364741557,1749224014919,-187.64720845,0.00019177,2]
[364741558,1749224014945,-500.0,0.00019177,2]
[364741559,1749224014972,-500.0,0.00019177,2]
[364741560,1749224014998,-500.0,0.00019177,2]
[364741561,1749224015024,-500.0,0.00019177,2]
[364741562,1749224015051,-500.0,0.00019177,2]
[364741563,1749224015077,-500.0,0.00019177,2]
[364741564,1749224015102,-500.0,0.00019177,2]
[364741565,1749224015130,-500.0,0.00019177,2]
[364741566,1749224015154,-500.0,0.00019177,2]
[364741567,1749224015179,-500.0,0.00019177,2]
[364741568,1749224015202,-500.0,0.00019177,2]
[364741569,1749224015227,-500.0,0.00019177,2]
[364741570,1749224015253,-500.0,0.00019177,2]
[364741571,1749224015276,-500.0,0.00019177,2]
[364741572,1749224015301,-500.0,0.00019177,2]
[364741573,1749224015326,-500.0,0.00019177,2]
[364741574,1749224015353,-500.0,0.00019177,2]
[364741575,1749224015383,-500.0,0.00019177,2]
[364741576,1749224015411,-500.0,0.00019177,2]
[364741577,1749224015436,-500.0,0.00019177,2]
[364741578,1749224015462,-459.72673812,0.00019177,2]
[364741579,1749224080470,150.0,0.00018256,2]
[364741580,1749224110798,2028.23001674,0.00018796,2]
[364741581,1749224110822,7971.76998326,0.00018796,2]
[364741582,1749224151400,150.0,0.0001825,2]
[364741583,1749224182179,783.557263,0.00018196,2]
[364741584,1749224192494,200.19666158,0.00018603,2]
[364741585,1749224211752,180.66883505,6.8e-07,2]
[364741586,1749224222805,150.0,0.00018536,2]
[364741587,1749224238003,1129.90940106,0.00024649,120]
[364741588,1749224259202,173.0,0.00016438,3]
[364741589,1749224295419,150.0,0.00018253,2]
[364741590,1749224368297,150.0,0.00018248,2]
[364741591,1749224403324,-168.19204084,0.00019076,2]
[364741592,1749224403354,-150.0,0.00019122,2]
[364741593,1749224403381,-160.0,0.00019168,2]
[364741594,1749224403409,-81.06795916,0.00019173,2]
[364741595,1749224438174,150.0,0.0001825,2]
[364741598,1749224485945,410.937534,0.00013699,2]
[364741600,1749224513050,150.0,0.00018567,2]
[364741602,1749224534409,3351.0,0.000162,2]
[364741603,1749224546839,3300.0,0.00018,2]
[364741604,1749224595433,150.0,0.00016423,2]
[364741605,1749224595873,150.0,0.00017205,2]
[364741606,1749224596316,150.0,0.00017987,2]
[364741607,1749224596802,150.0,0.00018769,2]
[364741608,1749224669678,150.0,0.00016422,2]
[364741609,1749224670099,150.0,0.00017204,2]
[364741610,1749224670523,150.0,0.00017986,2]
[364741611,1749224670972,150.0,0.00018768,2]
[364741612,1749224706785,697.52352311,0.00018999,2]
[364741613,1749224706811,502.47647689,0.00018999,2]
[364741614,1749224744460,150.0,0.00016409,2]
[364741615,1749224744942,150.0,0.0001719,2]
[364741616,1749224745450,150.0,0.00017971,2]
[364741617,1749224750526,300.0,0.00018999,2]
[364741619,1749224806451,236.0,0.00024,120]
[364741620,1749224814344,150.0,0.00015808,2]
[364741621,1749224829122,-17020.0,0.00019,2]
[364741622,1749224829148,-368.79802651,0.00019078,2]
[364741623,1749224829171,-300.0,0.0001917,2]
[364741624,1749224829193,-200.0,0.0001917,2]
[364741625,1749224829215,-358.35450349,0.0001917,2]
[364741626,1749224829239,-500.0,0.0001917,2]
[364741627,1749224829263,-500.0,0.0001917,2]
[364741628,1749224829285,-624.85139549,0.0001917,2]
[364741629,1749224829324,-500.0,0.0001917,2]
[364741630,1749224829349,-449.62438584,0.0001917,2]
[364741631,1749224846134,-50.37561416,0.0001917,2]
[364741632,1749224846160,-500.0,0.0001917,2]
[364741633,1749224846185,-183.93799025,0.0001917,2]
[364741634,1749224846208,-237.30438447,0.0001917,2]
[364741635,1749224849135,-262.69561553,0.0001917,2]
[364741636,1749224849158,-500.0,0.0001917,2]
[364741637,1749224849183,-500.0,0.0001917,2]
[364741638,1749224849206,-500.0,0.0001917,2]
[364741639,1749224849228,-500.0,0.0001917,2]
[364741640,1749224849251,-500.0,0.0001917,2]
[364741641,1749224849275,-500.0,0.0001917,2]
[364741642,1749224849296,-500.0,0.0001917,2]
[364741643,1749224849321,-500.0,0.0001917,2]
[364741644,1749224849342,-394.98746746,0.0001917,2]
[364741645,1749224849575,-500.0,0.0001917,2]
[364741646,1749224849601,-500.0,0.0001917,2]
[364741647,1749224849627,-500.0,0.0001917,2]
[364741648,1749224849654,-500.0,0.0001917,2]
[364741649,1749224849679,-500.0,0.0001917,2]
[364741650,1749224849704,-500.0,0.0001917,2]
[364741651,1749224849730,-259.95942158,0.0001917,2]
[364741652,1749224924849,3255.9189592,0.00018196,2]
[364741653,1749225024968,150.0,0.00015806,2]
[364741654,1749225027235,14210.25836391,0.00018196,2]
[364741655,1749225027260,10689.74163609,0.00018196,2]
[364741695,1749225033688,1089.17714262,0.000189,2]
[364741726,1749225038875,-322.69827324,0.00019078,2]
[364741728,1749225038885,-300.0,0.00019176,2]
[364741730,1749225038894,-354.04365085,0.00019177,2]
[364741732,1749225038905,-145.95634915,0.00019177,2]
[364741733,1749225038914,-500.0,0.00019177,2]
[364741734,1749225038924,-138.52837723,0.00019177,2]
[364741735,1749225038935,-361.47162277,0.00019177,2]
[364741736,1749225038946,-500.0,0.00019177,2]
[364741737,1749225038955,-500.0,0.00019177,2]
[364741738,1749225038965,-500.0,0.00019177,2]
[364741739,1749225038978,-500.0,0.00019177,2]
[364741740,1749225038988,-500.0,0.00019177,2]
[364741741,1749225038999,-500.0,0.00019177,2]
[364741742,1749225039008,-500.0,0.00019177,2]
[364741743,1749225039018,-500.0,0.00019177,2]
[364741744,1749225039028,-500.0,0.00019177,2]
[364741745,1749225039037,-500.0,0.00019177,2]
[364741746,1749225039048,-500.0,0.00019177,2]
[364741747,1749225039057,-500.0,0.00019177,2]
[364741748,1749225039066,-500.0,0.00019177,2]
[364741749,1749225039075,-473.39563801,0.00019177,2]
[364741750,1749225039084,-500.0,0.00019177,2]
[364741751,1749225039093,-500.0,0.00019177,2]
[364741752,1749225039102,-500.0,0.00019177,2]
[364741753,1749225039111,-500.0,0.00019177,2]
[364741754,1749225039121,-500.0,0.00019177,2]
[364741755,1749225039130,-500.0,0.00019177,2]
[364741756,1749225039139,-500.0,0.00019177,2]
[364741757,1749225039148,-122.59518614,0.00019177,2]
[364741758,1749225039186,-377.40481386,0.00019177,2]
[364741759,1749225039195,-500.0,0.00019177,2]
[364741760,1749225039204,-500.0,0.00019177,2]
[364741761,1749225039214,-500.0,0.00019177,2]
[364741762,1749225039223,-500.0,0.00019177,2]
[364741763,1749225039232,-500.0,0.00019177,2]
[364741764,1749225039241,-500.0,0.00019177,2]
[364741765,1749225039252,-500.0,0.00019177,2]
[364741766,1749225039261,-500.0,0.00019177,2]
[364741767,1749225039270,-500.0,0.00019177,2]
[364741768,1749225039279,-500.0,0.00019177,2]
[364741769,1749225039289,-500.0,0.00019177,2]
[364741770,1749225039298,-500.0,0.00019177,2]
[364741771,1749225039308,-500.0,0.00019177,2]
[364741772,1749225039318,-500.0,0.00019177,2]
[364741773,1749225039327,-500.0,0.00019177,2]
[364741774,1749225039338,-500.0,0.00019177,2]
[364741775,1749225039347,-297.3395638,0.00019177,2]
[364741776,1749225039357,-500.0,0.00019177,2]
[364741777,1749225039366,-500.0,0.00019177,2]
[364741778,1749225039376,-500.0,0.00019177,2]
[364741779,1749225039385,-500.0,0.00019177,2]
[364741780,1749225039394,-500.0,0.00019177,2]
[364741781,1749225039404,-500.0,0.00019177,2]
[364741782,1749225039413,-430.0,0.00019178,2]
[364741783,1749225039423,-430.0,0.00019178,2]
[364741784,1749225039435,-430.0,0.00019178,2]
[364741785,1749225039447,-440.0,0.00019178,2]
[364741786,1749225039460,-440.0,0.00019178,2]
[364741787,1749225039473,-440.0,0.00019178,2]
[364741788,1749225039486,-440.0,0.00019178,2]
[364741789,1749225039498,-440.0,0.00019178,2]
[364741790,1749225039510,-440.0,0.00019178,2]
[364741791,1749225039520,-274.86,0.00019178,2]
[364741792,1749225039531,-440.0,0.00019178,2]
[364741793,1749225039544,-440.0,0.00019178,2]
[364741794,1749225039556,-440.0,0.00019178,2]
[364741795,1749225039567,-282.06174206,0.00019178,2]
[364741796,1749225039579,-440.0,0.00019178,2]
[364741797,1749225039590,-440.0,0.00019178,2]
[364741798,1749225039602,-440.0,0.00019178,2]
[364741799,1749225039614,-429.83177003,0.00019178,2]
[364741800,1749225039626,-440.0,0.00019178,2]
[364741801,1749225039637,-602.34,0.00019178,2]
[364741802,1749225039650,-440.0,0.00019178,2]
[364741803,1749225039662,-440.0,0.00019178,2]
[364741804,1749225039674,-440.0,0.00019178,2]
[364741805,1749225039685,-440.0,0.00019178,2]
[364741806,1749225039697,-440.0,0.00019178,2]
[364741807,1749225039720,-440.0,0.00019178,2]
[364741808,1749225039736,-440.0,0.00019178,2]
[364741809,1749225039748,-440.0,0.00019178,2]
[364741810,1749225039759,-440.0,0.00019178,2]
[364741811,1749225039770,-440.0,0.00019178,2]
[364741812,1749225039781,-581.83222827,0.00019178,2]
[364741813,1749225039793,-440.0,0.00019178,2]
[364741814,1749225039805,-440.0,0.00019178,2]
[364741815,1749225039816,-440.0,0.00019178,2]
[364741816,1749225039828,-440.0,0.00019178,2]
[364741817,1749225039838,-440.0,0.00019178,2]
[364741818,1749225039848,-440.0,0.00019178,2]
[364741819,1749225039858,-440.0,0.00019178,2]
[364741820,1749225039869,-440.0,0.00019178,2]
[364741821,1749225039880,-430.0,0.00019178,2]
[364741822,1749225039895,-440.0,0.00019178,2]
[364741823,1749225039911,-430.0,0.00019178,2]
[364741824,1749225039931,-430.0,0.00019178,2]
[364741825,1749225039952,-440.0,0.00019178,2]
[364741826,1749225039973,-440.0,0.00019178,2]
[364741827,1749225039997,-182.90702221,0.00019178,2]
[364741828,1749225040020,-350.0,0.00019178,2]
[364741829,1749225040042,-440.0,0.00019178,2]
[364741830,1749225040063,-584.62,0.00019178,2]
[364741831,1749225040082,-440.0,0.00019178,2]
[364741832,1749225040096,-440.0,0.00019178,2]
[364741833,1749225040120,-440.0,0.00019178,2]
[364741834,1749225040143,-440.0,0.00019178,2]
[364741835,1749225040156,-440.0,0.00019178,2]
[364741836,1749225040177,-440.0,0.00019178,2]
[364741837,1749225040199,-440.0,0.00019178,2]
[364741838,1749225040220,-440.0,0.00019178,2]
[364741839,1749225040234,-440.0,0.00019178,2]
[364741840,1749225040246,-440.0,0.00019178,2]
[364741841,1749225040258,-423.30218969,0.00019178,2]
[364741842,1749225040271,-410.0,0.00019178,2]
[364741843,1749225040284,-440.0,0.00019178,2]
[364741844,1749225040296,-440.0,0.00019178,2]
[364741845,1749225040306,-440.0,0.00019178,2]
[364741846,1749225040316,-440.0,0.00019178,2]
[364741847,1749225040327,-344.22252767,0.00019178,2]
[364741848,1749225040338,-723.65,0.00019178,2]
[364741849,1749225040349,-378.61590313,0.00019178,2]
[364741850,1749225040360,-175.67092659,0.00019178,2]
[364741851,1749225040373,-440.0,0.00019178,2]
[364741852,1749225040385,-440.0,0.00019178,2]
[364741853,1749225040396,-440.0,0.00019178,2]
[364741855,1749225040407,-430.0,0.00019178,2]
[364741856,1749225040418,-440.0,0.00019178,2]
[364741857,1749225040428,-440.0,0.00019178,2]
[364741858,1749225040439,-440.0,0.00019178,2]
[364741859,1749225040449,-2630.03,0.00019178,2]
[364741860,1749225040460,-440.0,0.00019178,2]
[364741861,1749225040471,-400.0,0.00019178,2]
[364741862,1749225040482,-525.93,0.00019178,2]
[364741863,1749225040493,-1854.3,0.00019178,2]
[364741864,1749225040505,-440.0,0.00019178,2]
[364741865,1749225040515,-440.0,0.00019178,2]
[364741866,1749225040526,-440.0,0.00019178,2]
[364741867,1749225040540,-440.0,0.00019178,2]
[364741868,1749225040550,-406.36842364,0.00019178,2]
[364741869,1749225040561,-440.0,0.00019178,2]
[364741870,1749225040572,-384.07300146,0.00019178,2]
[364741871,1749225040583,-440.0,0.00019178,2]
[364741872,1749225040594,-430.0,0.00019178,2]
[364741873,1749225040604,-440.0,0.00019178,2]
[364741874,1749225040615,-904.17,0.00019178,2]
[364741875,1749225040626,-440.0,0.00019178,2]
[364741876,1749225040637,-640.74,0.00019178,2]
[364741877,1749225040648,-430.0,0.00019178,2]
[364741878,1749225040658,-440.0,0.00019178,2]
[364741879,1749225040669,-440.0,0.00019178,2]
[364741880,1749225040681,-440.0,0.00019178,2]
[364741881,1749225040692,-440.0,0.00019178,2]
[364741882,1749225040703,-440.0,0.00019178,2]
[364741883,1749225040714,-803.46,0.00019178,2]
[364741884,1749225040725,-2401.81,0.00019178,2]
[364741886,1749225040736,-440.0,0.00019178,2]
[364741888,1749225040748,-440.0,0.00019178,2]
[364741890,1749225040759,-372.110366,0.00019178,2]
[364741891,1749225040770,-440.0,0.00019178,2]
[364741892,1749225040781,-440.0,0.00019178,2]
[364741893,1749225040792,-440.0,0.00019178,2]
[364741894,1749225040803,-372.2904143,0.00019178,2]
[364741895,1749225040814,-440.0,0.00019178,2]
[364741896,1749225040825,-1193.36,0.00019178,2]
[364741897,1749225040836,-500.13,0.00019178,2]
[364741898,1749225040846,-440.0,0.00019178,2]
[364741899,1749225040856,-440.0,0.00019178,2]
[364741900,1749225040867,-440.0,0.00019178,2]
[364741901,1749225040877,-440.0,0.00019178,2]
[364741902,1749225040888,-440.0,0.00019178,2]
[364741903,1749225040898,-855.14,0.00019178,2]
[364741904,1749225040909,-788.34,0.00019178,2]
[364741905,1749225040919,-440.0,0.00019178,2]
[364741906,1749225040930,-420.0,0.00019178,2]
[364741907,1749225040940,-440.0,0.00019178,2]
[364741908,1749225040951,-440.0,0.00019178,2]
[364741909,1749225040961,-440.0,0.00019178,2]
[364741910,1749225040975,-440.0,0.00019178,2]
[364741911,1749225040986,-440.0,0.00019178,2]
[364741912,1749225040996,-1040.34,0.00019178,2]
[364741913,1749225041007,-440.0,0.00019178,2]
[364741914,1749225041017,-440.0,0.00019178,2]
[364741915,1749225041027,-466.15,0.00019178,2]
[364741916,1749225041039,-647.62,0.00019178,2]
[364741917,1749225041051,-440.0,0.00019178,2]
[364741918,1749225041062,-1629.68,0.00019178,2]
[364741919,1749225041072,-440.0,0.00019178,2]
[364741920,1749225041083,-440.0,0.00019178,2]
[364741921,1749225041094,-440.0,0.00019178,2]
[364741922,1749225041105,-440.0,0.00019178,2]
[364741923,1749225041115,-440.0,0.00019178,2]
[364741924,1749225041126,-440.0,0.00019178,2]
[364741925,1749225041136,-440.0,0.00019178,2]
[364741926,1749225041147,-440.0,0.00019178,2]
[364741927,1749225041158,-440.0,0.00019178,2]
[364741928,1749225041169,-440.0,0.00019178,2]
[364741930,1749225041180,-1744.64,0.00019178,2]
[364741932,1749225041191,-1444.95,0.00019178,2]
[364741934,1749225041201,-3022.65,0.00019178,2]
[364741936,1749225041210,-440.0,0.00019178,2]
[364741938,1749225041219,-1328.3,0.00019178,2]
[364741958,1749225041395,-165.842008,0.00019178,2]
[364741960,1749225041405,-768.66,0.00019442,3]
[364741962,1749225041414,-440.0,0.00019452,2]
[364741964,1749225041424,-440.0,0.00019452,2]
[364741966,1749225041433,-400.0,0.00019452,2]
[364741968,1749225041443,-440.0,0.00019452,2]
[364741970,1749225041452,-575.46,0.00019452,2]
[364741972,1749225041462,-440.0,0.00019452,2]
[364741974,1749225041471,-440.0,0.00019452,2]
[364741976,1749225041481,-440.0,0.00019452,2]
[364741978,1749225041491,-440.0,0.00019452,2]
[364741980,1749225041500,-440.0,0.00019452,2]
[364741982,1749225041510,-440.0,0.00019452,2]
[364741984,1749225041519,-602.34,0.00019452,2]
[364741986,1749225041529,-440.0,0.00019452,2]
[364741988,1749225041539,-320.0,0.00019452,2]
[364741990,1749225041549,-440.0,0.00019452,2]
[364741992,1749225041559,-440.0,0.00019452,2]
[364741994,1749225041569,-440.0,0.00019452,2]
[364741996,1749225041579,-440.0,0.00019452,2]
[364741998,1749225041589,-440.0,0.00019452,2]
[364742000,1749225041599,-440.0,0.00019452,2]
[364742001,1749225041608,-440.0,0.00019452,2]
[364742003,1749225041618,-440.0,0.00019452,2]
[364742005,1749225041627,-440.0,0.00019452,2]
[364742007,1749225041638,-440.0,0.00019452,2]
[364742009,1749225041648,-440.0,0.00019452,2]
[364742010,1749225041657,-440.0,0.00019452,2]
[364742012,1749225041666,-440.0,0.00019452,2]
[364742014,1749225041676,-440.0,0.00019452,2]
[364742016,1749225041685,-440.0,0.00019452,2]
[364742018,1749225041694,-582.62763877,0.00019452,2]
[364742020,1749225041704,-440.0,0.00019452,2]
[364742022,1749225041713,-584.62,0.00019452,2]
[364742024,1749225041723,-577.06430385,0.00019452,2]
[364742026,1749225041732,-440.0,0.00019452,2]
[364742028,1749225041742,-440.0,0.00019452,2]
[364742030,1749225041751,-440.0,0.00019452,2]
[364742032,1749225041761,-440.0,0.00019452,2]
[364742034,1749225041770,-440.0,0.00019452,2]
[364742036,1749225041781,-440.0,0.00019452,2]
[364742038,1749225041791,-440.0,0.00019452,2]
[364742040,1749225041800,-440.0,0.00019452,2]
[364742042,1749225041810,-440.0,0.00019452,2]
[364742044,1749225041821,-440.0,0.00019452,2]
[364742046,1749225041831,-440.0,0.00019452,2]
[364742048,1749225041841,-723.65,0.00019452,2]
[364742050,1749225041851,-400.0,0.00019452,2]
[364742052,1749225041860,-440.0,0.00019452,2]
[364742054,1749225041871,-410.90073203,0.00019452,2]
[364742056,1749225041881,-390.0,0.00019452,2]
[364742058,1749225041890,-440.0,0.00019452,2]
[364742060,1749225041900,-2630.03,0.00019452,2]
[364742062,1749225041909,-440.0,0.00019452,2]
[364742064,1749225041919,-525.93,0.00019452,2]
[364742066,1749225041929,-1854.3,0.00019452,2]
[364742068,1749225041939,-330.0,0.00019452,2]
[364742070,1749225041950,-440.0,0.00019452,2]
[364742072,1749225041959,-440.0,0.00019452,2]
[364742074,1749225041975,-440.0,0.00019452,2]
[364742076,1749225041985,-904.17,0.00019452,2]
[364742078,1749225041994,-440.0,0.00019452,2]
[364742080,1749225042004,-640.74,0.00019452,2]
[364742082,1749225042015,-440.0,0.00019452,2]
[364742084,1749225042024,-271.01586478,0.00019452,2]
[364742086,1749225042036,-440.0,0.00019452,2]
[364742088,1749225042046,-440.0,0.00019452,2]
[364742090,1749225042055,-803.46,0.00019452,2]
[364742092,1749225042065,-2401.81,0.00019452,2]
[364742094,1749225042074,-440.0,0.00019452,2]
[364742096,1749225042084,-440.0,0.00019452,2]
[364742098,1749225042093,-440.0,0.00019452,2]
[364742099,1749225042103,-440.0,0.00019452,2]
[364742101,1749225042117,-440.0,0.00019452,2]
[364742103,1749225042127,-410.0,0.00019452,2]
[364742105,1749225042137,-1193.36,0.00019452,2]
[364742107,1749225042146,-500.13,0.00019452,2]
[364742109,1749225042156,-440.0,0.00019452,2]
[364742111,1749225042165,-440.0,0.00019452,2]
[364742113,1749225042175,-440.0,0.00019452,2]
[364742115,1749225042185,-440.0,0.00019452,2]
[364742117,1749225042194,-855.14,0.00019452,2]
[364742119,1749225042204,-788.34,0.00019452,2]
[364742121,1749225042213,-440.0,0.00019452,2]
[364742123,1749225042223,-440.0,0.00019452,2]
[364742124,1749225042232,-440.0,0.00019452,2]
[364742126,1749225042241,-440.0,0.00019452,2]
[364742128,1749225042251,-1040.34,0.00019452,2]
[364742130,1749225042261,-440.0,0.00019452,2]
[364742132,1749225042270,-440.0,0.00019452,2]
[364742134,1749225042279,-466.15,0.00019452,2]
[364742136,1749225042288,-647.62,0.00019452,2]
[364742138,1749225042298,-1629.68,0.00019452,2]
[364742140,1749225042307,-417.35330721,0.00019452,2]
[364742141,1749225042316,-440.0,0.00019452,2]
[364742143,1749225042326,-440.0,0.00019452,2]
[364742145,1749225042336,-440.0,0.00019452,2]
[364742147,1749225042346,-440.0,0.00019452,2]
[364742149,1749225042355,-440.0,0.00019452,2]
[364742151,1749225042365,-440.0,0.00019452,2]
[364742153,1749225042375,-440.0,0.00019452,2]
[364742155,1749225042386,-440.0,0.00019452,2]
[364742157,1749225042396,-440.0,0.00019452,2]
[364742158,1749225042406,-1744.64,0.00019452,2]
[364742160,1749225042415,-1444.95,0.00019452,2]
[364742162,1749225042425,-3022.65,0.00019452,2]
[364742164,1749225042435,-493.72124398,0.00019452,2]
[364742166,1749225042444,-1328.3,0.00019452,2]
[364742168,1749225042454,-440.0,0.00019726,2]
[364742170,1749225042465,-430.06226957,0.00019726,2]
[364742172,1749225042478,-440.0,0.00019726,2]
[364742174,1749225042492,-440.0,0.00019726,2]
[364742176,1749225042508,-420.0,0.00019726,2]
[364742178,1749225042528,-440.0,0.00019726,2]
[364742180,1749225042549,-602.34,0.00019726,2]
[364742182,1749225042570,-430.0,0.00019726,2]
[364742183,1749225042590,-440.0,0.00019726,2]
[364742185,1749225042609,-440.0,0.00019726,2]
[364742187,1749225042630,-440.0,0.00019726,2]
[364742189,1749225042650,-440.0,0.00019726,2]
[364742191,1749225042670,-440.0,0.00019726,2]
[364742193,1749225042689,-440.0,0.00019726,2]
[364742195,1749225042708,-430.0,0.00019726,2]
[364742197,1749225042728,-440.0,0.00019726,2]
[364742199,1749225042749,-440.0,0.00019726,2]
[364742201,1749225042765,-440.0,0.00019726,2]
[364742203,1749225042774,-440.0,0.00019726,2]
[364742204,1749225042784,-584.62,0.00019726,2]
[364742206,1749225042793,-363.66,0.00019726,2]
[364742208,1749225042802,-370.0,0.00019726,2]
[364742210,1749225042811,-360.0,0.00019726,2]
[364742212,1749225042820,-440.0,0.00019726,2]
[364742214,1749225042829,-440.0,0.00019726,2]
[364742216,1749225042838,-440.0,0.00019726,2]
[364742217,1749225042847,-440.0,0.00019726,2]
[364742219,1749225042856,-723.65,0.00019726,2]
[364742221,1749225042865,-440.0,0.00019726,2]
[364742223,1749225042874,-440.0,0.00019726,2]
[364742225,1749225042884,-2630.03,0.00019726,2]
[364742227,1749225042894,-525.93,0.00019726,2]
[364742229,1749225042903,-1854.3,0.00019726,2]
[364742231,1749225042912,-440.0,0.00019726,2]
[364742233,1749225042922,-430.0,0.00019726,2]
[364742234,1749225042931,-440.0,0.00019726,2]
[364742236,1749225042941,-904.17,0.00019726,2]
[364742238,1749225042950,-640.74,0.00019726,2]
[364742240,1749225042960,-440.0,0.00019726,2]
[364742242,1749225042971,-440.0,0.00019726,2]
[364742244,1749225042981,-440.0,0.00019726,2]
[364742246,1749225042990,-803.46,0.00019726,2]
[364742248,1749225043000,-2401.81,0.00019726,2]
[364742250,1749225043010,-456.05839542,0.00019726,2]
[364742252,1749225043019,-440.0,0.00019726,2]
[364742253,1749225043028,-440.0,0.00019726,2]
[364742255,1749225043038,-440.0,0.00019726,2]
[364742257,1749225043049,-360.0,0.00019726,2]
[364742259,1749225043058,-1193.36,0.00019726,2]
[364742261,1749225043068,-500.13,0.00019726,2]